Cogmind - Beta 13 @@@ ROGUE MODE // 2024.04.20 @ 15:19:03 Player: HeartGrenade Result: Destroyed by 3K-FFT(R) with Subdweller Laser Performance ------------- Evolutions (0) 0 Regions Visited (2) 400 Robots Destroyed (13) 65 Value Destroyed (505) 505 Prototype IDs (2) 40 Alien Tech Used (0) 0 Bonus (0) 0 TOTAL SCORE: 1010 Bonus ------- None Cogmind --------- Core Integrity 0/250 Matter 291/300 Energy 104/200 System Corruption 0% Temperature Cool (6) Movement Walking (190) Ox1 Location -10/Subcaves Parts ------- > --- POWER (1) -------- Subdweller Power Source > --- PROPULSION (2) --- Aluminum Leg > --- UTILITY (2) ------ Heat Sink > --- WEAPON (2) ------- Small Laser Subdweller Machine Gun > --- INVENTORY (5) ---- Aluminum Leg Battle Rifle Mining Laser Peak State ------------ > --- POWER ------------ Ion Engine > --- PROPULSION ------- Aluminum Leg Aluminum Leg > --- UTILITY ---------- Heat Sink Weapon Shielding > --- WEAPON ----------- Small Laser Subdweller Machine Gun > --- INVENTORY -------- Aluminum Leg Aluminum Leg Mining Laser [Rating: 8] Favorites ----------- Power Ion Engine Engine Ion Engine Propulsion Aluminum Leg Treads Light Treads Leg Aluminum Leg Utility Heat Sink Device Heat Sink Protection Weapon Shielding Weapon Light Assault Rifle Energy Gun Small Laser Ballistic Gun Light Assault Rifle Special Weapon Mining Laser Build | -11 -10 -10 ------- Run | Yrd Mat Sub Slots Evolved . | . . . Power . | . . . Propulsion . | . . . Utility . | . . . Weapon . | . . . Parts Attached 26 | 4 12 10 Power 2 | . . 2 Engine 2 | . . 2 Core . | . . . Reactor . | . . . Propulsion 12 | 2 7 3 Treads 6 | 2 4 . Leg 6 | . 3 3 Wheel . | . . . Hover . | . . . Flight . | . . . Utility 2 | . 2 . Device 1 | . 1 . Storage . | . . . Processor . | . . . Hackware . | . . . Protection 1 | . 1 . Artifact . | . . . Weapon 10 | 2 3 5 Energy Gun 1 | . . 1 Energy Cannon . | . . . Ballistic Gun 8 | 2 3 3 Ballistic Cannon . | . . . Launcher . | . . . Special Weapon 1 | . . 1 Impact Weapon . | . . . Slashing Weapon . | . . . Piercing Weapon . | . . . Special Melee Weapon . | . . . Unidentified Prototypes . | . . . Parts Lost 10 | . 2 8 Power 1 | . . 1 Propulsion 5 | . 1 4 Utility 1 | . . 1 Weapon 3 | . 1 2 Highest Loss Streak 4 | . 2 4 To Critical Strikes . | . . . Average Slot Usage (%) 75 | . 59 91 Engine 4 | . . 9 Treads 9 | . 18 . Leg 17 | . 8 27 Device 7 | . 2 14 Protection 6 | . 1 11 Energy Gun 2 | . . 5 Ballistic Gun 24 | . 27 21 Naked Turns . | . . . Heaviest Build 12 | 2 4 12 Greatest Support 40 | 20 40 20 Greatest Overweight (x) 1 | . . 1 Average Overweight (x) . | . . . Largest Inventory Capacity 5 | 5 5 5 Average Capacity 5 | 5 5 5 Most Carried 5 | 3 5 5 Average Carried 4 | 1 4 4 Final Capacity 5 | 5 5 5 Final Carried 5 | 3 5 3 Class Distribution -------------------- 73% | Mutant 26% | Scavenger-Mutant Dominant Class ---------------- Mutant | -10/Materials Scavenger-Mutant | -10/Subcaves Resources | -11 -10 -10 ----------- Run | Yrd Mat Sub Matter Collected 532 | 213 188 131 Remotely . | . . . Salvage Created 534 | . 291 243 Parts 30 | . 15 15 Haulers Intercepted . | . . . Recyclers Shooed . | . . . Parts Field Recycled . | . . . Retrieved Matter . | . . . Parts Self-Destructed 13 | . . 13 Prevented . | . . . Kills | -11 -10 -10 ------- Run | Yrd Mat Sub Combat Hostiles Destroyed 13 | . 7 6 Guns 13 | . 7 6 Classes Destroyed 2 | . 1 1 Grunt 9 | . 7 2 Subdweller 4 | . . 4 Best Kill Streak 4 | . 4 2 Combat Bots Only 4 | . 4 2 Max Kills in Single Turn 1 | . 1 1 Gunslinging . | . . . Exploded . | . . . Melee . | . . . Uniques/NPCs Destroyed . | . . . Combat | -11 -10 -10 -------- Run | Yrd Mat Sub Hostile Shots Fired 100 | . 45 55 Missed 28 | . 14 14 Damage Taken 1246 | . 403 843 Core 251 | . 43 208 Absorbed by Shields . | . . . Redirected to Shielding 50 | . . 50 Core Remaining (%) 100 | 100 . . Volleys Fired 74 | . 37 37 Largest 2 | . 2 2 Hottest 100 | . 40 100 Shots Fired 141 | . 73 68 Gun 138 | . 73 65 Cannon . | . . . Launcher . | . . . Special 3 | . . 3 Kinetic 121 | . 73 48 Thermal 20 | . . 20 Explosive . | . . . Electromagnetic . | . . . Robot Hit Streak 16 | . 9 16 Robot Miss Streak 3 | . 3 2 Penetration Max . | . . . Secondary Targets 1 | . . 1 Max Gunslinging Chain 1 | . . 1 Shots Hit Robots 102 | . 54 48 Core Hits 39 | . 21 18 Critical Kills 1 | . 1 . Critical Parts Destroyed . | . . . Critical Strikes 1 | . 1 . Destroy 1 | . 1 . Melee Attacks . | . . . Impact . | . . . Slashing . | . . . Piercing . | . . . Sneak Attacks . | . . . Combat Hostiles . | . . . Follow-up Attacks . | . . . Damage Inflicted 927 | . 412 515 Guns 927 | . 412 515 Cannons . | . . . Explosions . | . . . Melee . | . . . Ramming . | . . . Kinetic 781 | . 412 369 Thermal 146 | . . 146 Explosive . | . . . Electromagnetic . | . . . Impact . | . . . Slashing . | . . . Piercing . | . . . Highest Corruption . | . . . Average Corruption . | . . . Corruption Purged . | . . . Corruption Blocked . | . . . Overload Shots . | . . . Overflow Damage . | . . . Projectiles . | . . . Explosions . | . . . Melee . | . . . Knockbacks . | . . . Impact . | . . . Kinetic . | . . . Secondary . | . . . Self-Inflicted Damage . | . . . Shots . | . . . Rammed . | . . . Targets Rammed . | . . . Kicked . | . . . Crushed . | . . . Highest Temperature 4 | . 4 . Average Temperature 1 | . 1 . Received Heat Transfer 351 | . 225 126 Siege Activations . | . . . Robots Corrupted . | . . . Combat Hostiles . | . . . Parts Fried . | . . . Impact Corruptions . | . . . Robots Melted . | . . . Combat Hostiles . | . . . Parts Melted . | . . . Heat Transferred 325 | . . 325 Parts Sabotaged . | . . . Parts Stolen . | . . . Parts Stripped . | . . . Power Chain Reactions . | . . . Alert | -11 -10 -10 ------- Run | Yrd Mat Sub Peak Influence 258 | . 258 . Initial . | . . . Average 91 | . 97 . Maximum Alert Level 1 | . 1 . Low Security (%) 82 | 100 81 . Level 1 17 | . 18 . Level 2 . | . . . Level 3 . | . . . Level 4 . | . . . Level 5 . | . . . High Security . | . . . Max Security . | . . . Squads Dispatched 3 | . 3 . Investigation . | . . . Extermination . | . . . Reinforcement 3 | . 3 . Assault . | . . . Garrison . | . . . Intercept . | . . . Searches Triggered . | . . . Construction Impeded . | . . . Haulers Reinforced . | . . . Active Scanning Responses . | . . . Cargo Convoy Interrupts . | . . . Stealth | -11 -10 -10 --------- Run | Yrd Mat Sub Distress Signals 2 | . 2 . Communications Jammed . | . . . Distress Signals . | . . . Times Spotted 30 | . 23 7 Peak Tracking Total 6 | . 6 2 Tactical Retreats 2 | . 2 . Traps | -11 -10 -10 ------- Run | Yrd Mat Sub Traps Triggered 3 | . 3 . Indirectly . | . . . Trap Hack Attempts . | . . . Triggered . | . . . Disarmed . | . . . Reprogrammed . | . . . Reused . | . . . Traps Extracted . | . . . Installed . | . . . Triggered 1 | . . 1 Machines | -11 -10 -10 ---------- Run | Yrd Mat Sub Machines Disabled . | . . . Max in Single Turn . | . . . Machines Repaired . | . . . Machines Dismantled . | . . . Machines Sabotaged . | . . . Overloaded Fab Kills . | . . . Hacking | -11 -10 -10 --------- Run | Yrd Mat Sub Machines Accessed 4 | . 4 . Terminals 4 | . 4 . Fabricators . | . . . Repair Stations . | . . . Recycling Units . | . . . Scanalyzers . | . . . Garrison Access . | . . . Total Hacks 13 | . 13 . Successful 8 | . 8 . Failed 4 | . 4 . Catastrophic 1 | . 1 . Database Lockouts 1 | . 1 . Manual 11 | . 11 . Terminals 13 | . 13 . Fabricators . | . . . Repair Stations . | . . . Recycling Units . | . . . Scanalyzers . | . . . Garrison Access . | . . . Terminal Hacks 5 | . 5 . Robot Analysis 1 | . 1 . Prototype ID Bank 1 | . 1 . Maintenance Status 1 | . 1 . Transport Status 1 | . 1 . Recall Reinforcements 1 | . 1 . Fabricator Hacks . | . . . Repair Station Hacks . | . . . Recycling Unit Hacks . | . . . Scanalyzer . | . . . Garrison Access Hacks . | . . . Unauthorized Hacks 3 | . 3 . Terminals 3 | . 3 . Assimilate 1 | . 1 . Disrupt 1 | . 1 . Operators 1 | . 1 . Fabricators . | . . . Repair Stations . | . . . Recycling Units . | . . . Scanalyzers . | . . . Garrison Access . | . . . Data Cores Recovered . | . . . Used . | . . . Hacking Detections 3 | . 3 . Full Trace Events . | . . . Feedback Events . | . . . Feedback Blocked . | . . . Robot Schematics Acquired . | . . . Robots Built . | . . . Authchips . | . . . Time . | . . . Total Robot Build Rating . | . . . Part Schematics Acquired . | . . . Parts Built . | . . . Authchips . | . . . Time . | . . . Total Part Build Rating . | . . . Parts Repaired . | . . . Time . | . . . Parts Recycled . | . . . Recycled Matter . | . . . Retrieved Matter . | . . . Retrieved Components . | . . . Parts Scanalyzed . | . . . Part Schematics Acquired . | . . . Parts Damaged . | . . . Bothacking | -11 -10 -10 ------------ Run | Yrd Mat Sub Used RIF Installer . | . . . Robots Hacked . | . . . Non-combat . | . . . Combat . | . . . Robot Hacks Applied . | . . . Relay Couplers Released . | . . . Fabnet Peak Effective % . | . . . Robots Rewired . | . . . Allies Hacked . | . . . Hacks Repelled . | . . . Allies | -11 -10 -10 -------- Run | Yrd Mat Sub Total Allies . | . . . Largest Group . | . . . Highest-Rated Group . | . . . Highest-Rated Ally . | . . . Total Orders . | . . . Ally Attacks . | . . . Total Damage . | . . . Kills . | . . . Allies Corrupted . | . . . Allies Melted . | . . . Intel | -11 -10 -10 ------- Run | Yrd Mat Sub Robot Analysis Total 1 | . 1 . Derelict Logs Recovered 2 | . . 2 Drone Launches . | . . . Drone Recoveries . | . . . Exploration | -11 -10 -10 ------------- Run | Yrd Mat Sub Turns Passed 953 | 31 475 447 Spaces Moved 752 | 38 473 241 Core 403 | 35 368 . Treads 24 | 3 21 . Legs 325 | . 84 241 Wheels . | . . . Hover . | . . . Flight . | . . . Fastest Speed 50 | 50 50 120 Average Speed 84 | 58 67 120 Slowest Speed 190 | 160 160 190 Overloaded Moves . | . . . Propulsion Burnouts . | . . . Robots Hopped . | . . . Cave-ins Triggered . | . . . Exploration Rate (%) 35 | 4 81 21 Regions Visited 2 Branch Regions 1 Pre-discovered Areas 2 | . . 2 Known Exits Taken . | . . . Unknown Exits Taken 2 | 1 1 . Scrap Searched . | . . . Spaces Dug . | . . . Terrain Destroyed . | . . . Melee . | . . . Projectile . | . . . AOE . | . . . Terrain Rammed . | . . . Walls Destroyed . | . . . Machines Disabled . | . . . Actions | -11 -10 -10 --------- Run | Yrd Mat Sub Total 940 | 44 567 329 Wait 76 | . 40 36 Move 750 | 37 472 241 Hop . | . . . Pick Up 10 | 3 3 4 Fast Attach 16 | 4 10 2 Attach 6 | . 1 5 Detach 1 | . 1 . Swap 4 | . 1 3 Drop 3 | . 2 1 Fire 74 | . 37 37 Melee . | . . . Ram . | . . . Kick . | . . . Crush . | . . . Escape Stasis . | . . . Rewire . | . . . Trap . | . . . Miscellaneous . | . . . Route ------- -11/Scrapyard -10/Materials (discovered 4 exits: [*Mat x2] / [*Min] / [*Sub]) -10/Subcaves History --------- Turn | Location | Event 11 | -11/Scrapyard | Discovered new exit (range 15) 32 | -11/Scrapyard | Entered Materials 52 | -10/Materials | Central database locked down 74 | -10/Materials | Discovered new exit (range 8) 153 | -10/Materials | Discovered new exit (range 13) 232 | -10/Materials | Discovered new exit (range 15) 309 | -10/Materials | Build established: Mutant 494 | -10/Materials | Discovered new exit (range 10) 507 | -10/Materials | Entered Subcaves 507 | -10/Subcaves | Learned location of Zion (-6) 679 | -10/Subcaves | Met a Zionite searching for "candidates" 767 | -10/Subcaves | Core integrity fell below 50% 819 | -10/Subcaves | Lost 4 parts (2n2w) 885 | -10/Subcaves | Core integrity fell below 20% 904 | -10/Subcaves | Learned 4 Materials zone layouts 954 | -10/Subcaves | Destroyed by 3K-FFT(R) with Subdweller Laser Last Messages --------------- 00789_ AY-YEI(R) destroyed. 00794_ Acquired Sub. Machine Gun. 00795_ Subatomizers dissect the Disposable Heat Sink. 00795_ Acquired 32 matter. 00800_ Acquired 10 matter. 00801_ Acquired Sub. Power Source. 00808_ Subatomizers dissect the Disposable Heat Sink. 00853_ EY-L28(R): "ARGHSUB!" 00872_ Ion Engine destroyed. 00878_ Weapon Shielding destroyed. 00880_ EY-L28(R) destroyed. 00880_ Sub. Machine Gun shoots sparks and powers down. 00887_ A1-EIY(R) destroyed. 00890_ Dropped Broken Sub. Machine Gun. 00891_ Acquired 27 matter. 00893_ Acquired 5 matter. 00896_ Acquired Battle Rifle. 00904_ Acquired derelict log, extracted data. Data stored: Materials zone layouts (x4). 00950_ Aluminum Leg destroyed. Map ----- +----------------------------------------------------+ | ?????????????????????????????????????????????????? | | ?????????????????????????????????????????????????? | | ?????????????????????????????????????????????????? | | ?????????????????????????????????????????????????? | | ?????????????????????????????????????????????????? | | ?????????????????????????????????????????????????? | | ?????????????????????????????????????????????????? | | ?????????????????????????????????????????????????? | | ?????????????????????????????????????????????????? | | ?????????????????????????????????????????????????? | | ?????????????????????????????????????????????????? | | ?????????????????????????????????????????????????? | | ????##########?????########??????????????????????? | | ##### #????## ;;;;;##?????????????????????? | | "# #????#""; ;######????????????????? | | """"" "######" ##???????????????? | | " [ # # " "##??????????????? | | & "";; % " #??????????????? | | " *% #" ;; " ###????????????? | | "" ## ### ""# #????????????? | | ##" "" ## # #????????????? | | ##" ###" ## R #????????????? | | #?#" " #"" #????????????? | | ""# ### " # #### ##### ""#????????????? | | #######?## " ##??# ##?## #####????????????? | | "#????????# " ??## @ ### #???????????????? | | "#????????##" ??# ### ##???????????????? | | #????????## " ## #?# ## ##???????????????? | | "##?????????# " #? ###?### ## #???????????????? | | ##??????????# "##??#????# #???????????????? | | ????????????" #?????????# ##???????????????? | | ????????????? ??????????### #####????????????????? | | ?????????????#????????????###????????????????????? | | ?????????????????????????????????????????????????? | | ?????????????????????????????????????????????????? | | ?????????????????????????????????????????????????? | | ?????????????????????????????????????????????????? | | ?????????????????????????????????????????????????? | | ?????????????????????????????????????????????????? | | ?????????????????????????????????????????????????? | | ?????????????????????????????????????????????????? | | ?????????????????????????????????????????????????? | | ?????????????????????????????????????????????????? | | ?????????????????????????????????????????????????? | | ?????????????????????????????????????????????????? | | ?????????????????????????????????????????????????? | | ?????????????????????????????????????????????????? | | ?????????????????????????????????????????????????? | | ?????????????????????????????????????????????????? | | ?????????????????????????????????????????????????? | +----------------------------------------------------+ Best States ------------- Heat Dissipation 35 Energy Generation 10 Energy Capacity 250 Matter Stores 300 Matter Capacity 300 Sight Range 16 Terrain Scan Density 10 Weapon Shielding 33 Evasion (%) 55 Recoil Reduction 2 Item Schematics ----------------- None Robot Schematics ------------------ None Fabricated ------------ Nothing Alien Tech Used ----------------- None Achievements -------------- None Challenges ------------ None Game ------ Seed ColdMolecularCarapace Manual? 0 Play Time 00:11:57 Cumulative 359.7 hours Start 2024.04.20 @ 15:09:24 End 2024.04.20 @ 15:19:03 Sessions 1 Manual Loads 0 Difficulty Rogue Special Mode None Game No. 154 Rogue 154 Adventurer 0 Explorer 0 Win Type - Total 18 Types 5/2/6/1/2/0/1/1/0 Lore% 85 Gallery% 84 Achievement% 72 Wizard Run 0 Options --------- Layout 0 ASCII 0 Keyboard 1 Movement Numpad Keybinds 0 Fullscreen 2 Font 18/X11 Map View 76x50 Zoom Use 0% Tactical HUD 1 Map Filters NONE Filters NONE Steam 1 RUN: b9bcd8f2-425e-4029-ba29-0a649429a44a